bitfinex-derivatives/quotes_BTCF0:USTF0_20250308
["timestamp","ask_amount","ask_price","bid_price","bid_amount"]
[1741459375876,0.0896,86068.0,86067.0,0.15325407]
[1741459377389,0.0896,86068.0,86067.0,0.09534013]
[1741459377780,0.1856,86068.0,86067.0,0.09534013]
[1741459380383,0.1856,86068.0,86067.0,0.03742619]
[1741459380577,0.0929768,86067.0,86066.0,0.4570743]
[1741459380780,0.1856,86068.0,86066.0,0.4570743]
[1741459381089,0.2849768,86067.0,86066.0,0.0001743]
[1741459381386,0.3836768,86067.0,86066.0,0.0001743]
[1741459381790,0.3836768,86067.0,86054.0,0.78987482]
[1741459381791,0.0929865,86058.0,86054.0,0.78987482]
[1741459381984,0.4537887,86056.0,86054.0,0.79095482]
[1741459382388,0.5524887,86056.0,86054.0,0.84843455]
[1741459382689,0.5524887,86056.0,86054.0,0.79095482]
[1741459382987,0.9132887,86056.0,86055.0,0.1984013]
[1741459383492,0.9132887,86056.0,86055.0,0.14048736]
[1741459384484,0.0929898,86055.0,86054.0,0.00875482]
[1741459384685,0.0929909,86054.0,86053.0,0.14048736]
[1741459384884,0.1502788,86054.0,86053.0,0.14048736]
[1741459385479,0.0929909,86054.0,86053.0,0.14048736]
[1741459386088,0.1848909,86054.0,86053.0,0.14048736]
[1741459386493,0.1848909,86054.0,86053.0,0.08256604]
[1741459388994,0.0929963,86049.0,86048.0,0.05761924]
[1741459389294,0.0929973,86048.0,86047.0,0.00907877]
[1741459389481,0.2740973,86048.0,86039.0,0.14745745]
[1741459389685,0.093006,86040.0,86039.0,0.24911598]
[1741459389885,0.093006,86040.0,86039.0,0.15610888]
[1741459390590,0.274106,86040.0,86039.0,0.15610888]
[1741459391790,0.274106,86040.0,86039.0,0.21487259]
[1741459392488,0.274106,86040.0,86039.0,0.15695127]
[1741459392883,0.1811,86040.0,86039.0,0.15695127]
[1741459393197,0.0898,86040.0,86039.0,0.15695127]
[1741459393393,0.182806,86040.0,86039.0,0.15695127]
[1741459394692,0.0898,86040.0,86039.0,0.15695127]
[1741459395196,0.0898,86040.0,86039.0,0.51775127]
[1741459395492,0.0929966,86049.0,86039.0,0.45982995]
[1741459395699,0.0958,86045.0,86040.0,0.092]
[1741459395996,0.0918,86044.0,86040.0,0.092]
[1741459396397,0.0958,86043.0,86040.0,0.092]
[1741459396799,0.0918,86042.0,86040.0,0.092]
[1741459397198,0.09,86041.0,86040.0,0.092]
[1741459398603,0.09,86041.0,86040.0,0.03407868]
[1741459398802,0.09,86041.0,86040.0,0.21598468]
[1741459399995,0.09,86041.0,86040.0,0.12297868]
[1741459400197,0.09,86041.0,86040.0,0.21598468]
[1741459400996,0.09,86041.0,86040.0,0.12297868]
[1741459401691,0.09,86041.0,86040.0,0.06505736]
[1741459402299,0.09,86041.0,86040.0,0.15806336]
[1741459404794,0.09,86041.0,86040.0,0.10014204]
[1741459405009,0.09,86041.0,86040.0,0.00713604]
[1741459406002,0.09,86041.0,86040.0,0.10014204]
[1741459407797,0.09,86041.0,86040.0,0.04222072]
[1741459410809,0.09,86041.0,86039.0,0.41251454]
[1741459411009,0.0972,86040.0,86039.0,0.50552164]
[1741459412013,0.0972,86040.0,86039.0,0.59862164]
[1741459413612,0.0972,86040.0,86039.0,0.23782164]
[1741459413814,0.0972,86040.0,86039.0,0.54070032]
[1741459414002,0.0972,86040.0,86039.0,0.96884586]
[1741459414414,0.0972,86040.0,86039.0,0.97749657]
[1741459414721,0.0972,86040.0,86039.0,0.61669657]
[1741459415015,0.0972,86040.0,86039.0,0.97749657]
[1741459415403,0.09,86041.0,86040.0,0.093006]
[1741459415612,0.09,86041.0,86040.0,0.183806]
[1741459416909,0.09,86041.0,86040.0,0.0908]
[1741459417308,0.09,86041.0,86040.0,0.183806]
[1741459419821,0.09,86041.0,86040.0,0.12588468]
[1741459420606,0.09,86041.0,86040.0,0.55403022]
[1741459422918,0.09,86041.0,86040.0,0.4961089]
[1741459426016,0.09,86041.0,86040.0,0.88195154]
[1741459426923,0.09,86041.0,86040.0,0.52115154]
[1741459427121,0.09,86041.0,86040.0,0.88195154]
[1741459427723,0.09,86041.0,86040.0,0.78894554]
[1741459428928,0.09,86041.0,86040.0,0.73102422]
[1741459432029,0.09,86041.0,86040.0,0.6731029]
[1741459433234,0.09,86041.0,86040.0,0.68198824]
[1741459433733,0.09,86041.0,86040.0,0.77499424]
[1741459433935,0.06629914,86041.0,86040.0,0.77499424]
[1741459435037,0.06629914,86041.0,86040.0,0.71707292]
[1741459435536,0.06629914,86041.0,86040.0,0.70818758]
[1741459436128,0.06629914,86041.0,86040.0,0.61518158]
[1741459436933,0.06629914,86041.0,86040.0,0.25438158]
[1741459437235,0.06629914,86041.0,86040.0,0.61518158]
[1741459437427,0.06629914,86041.0,86040.0,0.70818758]
[1741459437627,0.06629914,86041.0,86040.0,0.83378758]
[1741459438134,0.06629914,86041.0,86040.0,0.77586626]
[1741459438435,0.06629914,86041.0,86040.0,0.55726026]
[1741459439536,0.06629914,86041.0,86040.0,0.19646026]
[1741459439740,0.06629914,86041.0,86040.0,0.55726026]
[1741459440639,0.06629914,86041.0,86040.0,0.65026626]
[1741459440833,0.06629914,86041.0,86040.0,0.74626626]
[1741459441137,0.06629914,86041.0,86040.0,0.68834494]
[1741459442839,0.06629914,86041.0,86040.0,0.59533894]
[1741459443926,0.06629914,86041.0,86040.0,0.23453894]
[1741459444134,0.06629914,86041.0,86040.0,0.53741762]
[1741459444940,0.06629914,86041.0,86040.0,0.44141762]
[1741459447140,0.06629914,86041.0,86040.0,0.39201705]
[1741459447554,0.06629914,86041.0,86040.0,0.3834963]
[1741459448349,0.06629914,86041.0,86040.0,0.0226963]
[1741459448849,0.06629914,86041.0,86040.0,0.3608]
[1741459449051,0.06629914,86041.0,86040.0,0.553106]
[1741459450045,0.06629914,86041.0,86040.0,0.4601]
[1741459450248,0.06629914,86041.0,86040.0,0.30287868]
[1741459450655,0.16209914,86041.0,86040.0,0.30287868]
[1741459453255,0.16209914,86041.0,86040.0,0.24495736]
[1741459454255,0.16209914,86041.0,86039.0,0.4067688]
[1741459454956,0.16209914,86041.0,86040.0,0.190306]
[1741459456346,0.16209914,86041.0,86040.0,0.13238468]
[1741459459359,0.16209914,86041.0,86040.0,0.07446336]
[1741459459946,0.03006432,86041.0,86040.0,0.07446336]
[1741459460253,0.10465583,86046.0,86045.0,0.0930006]
[1741459460452,0.04664583,86046.0,86045.0,0.4538006]
[1741459460658,0.04664583,86046.0,86045.0,0.5764006]
[1741459460861,0.04664583,86048.0,86047.0,0.0929984]
[1741459461158,0.04664583,86048.0,86047.0,0.1714384]
[1741459462366,0.04664583,86048.0,86047.0,0.07844]
[1741459462663,0.04664583,86048.0,86047.0,0.1714384]
[1741459463054,0.04664583,86048.0,86047.0,0.5322384]
[1741459465066,0.0991,86055.0,86052.0,0.0929925]
[1741459465257,0.0991,86055.0,86051.0,0.3608]
[1741459465559,0.0929912,86054.0,86051.0,0.30287868]
[1741459465760,0.2783912,86054.0,86051.0,0.30287868]
[1741459466756,0.1854,86054.0,86051.0,0.30287868]
[1741459468363,0.1854,86054.0,86051.0,0.24495736]
[1741459469062,0.1854,86054.0,86051.0,0.33795126]
[1741459469964,0.1854,86054.0,86051.0,0.0929939]
[1741459470467,0.1854,86054.0,86053.0,0.0929919]
[1741459471555,0.1854,86054.0,86052.0,0.0897]
[1741459471961,0.1854,86054.0,86053.0,0.0929919]
[1741459472163,0.1854,86054.0,86053.0,0.30153478]
[1741459474066,0.1854,86054.0,86053.0,0.20854288]
[1741459474464,0.1854,86054.0,86053.0,0.15062156]
[1741459475354,0.1854,86054.0,86053.0,0.33561346]
[1741459476457,0.1854,86054.0,86053.0,0.1849919]
[1741459477065,0.1854,86054.0,86053.0,0.0929919]
[1741459477565,0.1854,86054.0,86051.0,0.1818]
[1741459477765,0.1854,86054.0,86053.0,0.0929919]
[1741459480167,0.12972,86054.0,86053.0,0.0929919]
[1741459480663,0.12972,86054.0,86052.0,0.0898]
[1741459480870,0.12972,86054.0,86053.0,0.1893919]
[1741459483657,0.12972,86054.0,86053.0,0.13147058]
[1741459484363,0.12972,86054.0,86053.0,0.88640476]
[1741459484970,0.12972,86054.0,86053.0,0.84792608]
[1741459485466,0.05441845,86055.0,86054.0,0.0929909]
[1741459485973,0.05441845,86055.0,86054.0,0.1841909]
[1741459486471,0.05441845,86055.0,86054.0,0.2755909]
[1741459486663,0.05441845,86055.0,86054.0,0.1826]
[1741459487567,0.05441845,86055.0,86054.0,0.2755909]
[1741459488071,0.05441845,86055.0,86054.0,0.6363909]
[1741459488259,0.05441845,86055.0,86054.0,0.6529988]
[1741459489674,0.05441845,86055.0,86054.0,0.59507748]
[1741459490072,0.05441845,86055.0,86054.0,0.5617988]
[1741459490467,0.05441845,86055.0,86054.0,0.561736]
[1741459491673,0.05441845,86055.0,86054.0,0.96903604]
[1741459492875,0.05441845,86055.0,86054.0,0.87763604]
[1741459493075,0.05441845,86055.0,86054.0,0.97503604]
[1741459493371,0.05441845,86055.0,86054.0,0.98829036]
[1741459493577,0.05441845,86055.0,86054.0,0.89089036]
[1741459494073,0.05441845,86055.0,86054.0,0.90556252]
[1741459494474,0.05441845,86055.0,86054.0,0.89264846]
[1741459494871,0.05441845,86055.0,86054.0,0.8779763]
[1741459495475,0.05441845,86055.0,86054.0,0.98852227]
[1741459495673,0.05441845,86055.0,86054.0,0.89553137]
[1741459495879,0.05441845,86055.0,86054.0,0.97543137]
[1741459496477,0.01311084,86055.0,86054.0,0.9621854]
[1741459496781,0.01311084,86055.0,86054.0,0.8822854]
[1741459496972,0.01311084,86055.0,86054.0,0.9752763]
[1741459497577,0.01311084,86055.0,86054.0,0.95839094]
[1741459497779,0.01311084,86055.0,86054.0,0.97491315]
[1741459497975,0.01311084,86055.0,86054.0,0.87761315]
[1741459498380,0.01311084,86055.0,86054.0,0.51681315]
[1741459498570,0.01311084,86055.0,86054.0,0.50029094]
[1741459498773,0.01311084,86055.0,86054.0,0.81964111]
[1741459498972,0.01311084,86055.0,86054.0,0.80316962]
[1741459499174,0.01311084,86055.0,86054.0,0.81964153]
[1741459500084,0.01311084,86055.0,86054.0,0.72665063]
[1741459500288,0.01311084,86055.0,86054.0,0.81964153]
[1741459500687,0.01311084,86055.0,86054.0,0.81966197]
[1741459501488,0.01311084,86055.0,86054.0,0.90266962]
[1741459501882,0.01311084,86055.0,86054.0,0.8447483]
[1741459502081,0.01311084,86055.0,86054.0,0.85332096]
[1741459502277,0.01311084,86055.0,86054.0,0.66083006]
[1741459502580,0.01311084,86055.0,86054.0,0.83218096]
[1741459503785,0.01311084,86055.0,86054.0,0.73919006]
[1741459504188,0.10321084,86055.0,86054.0,0.73919006]
[1741459504490,0.20101084,86055.0,86054.0,0.73919006]
[1741459504686,0.20101084,86055.0,86054.0,1.08682531]
[1741459504890,0.20101084,86055.0,86054.0,1.02890399]
[1741459505184,0.20101084,86055.0,86054.0,1.12189489]
[1741459506187,0.20101084,86055.0,86054.0,0.66810399]
[1741459507883,0.20101084,86055.0,86054.0,0.61018267]
[1741459508091,0.20101084,86055.0,86054.0,0.17992356]
[1741459508480,0.20101084,86055.0,86054.0,0.08693266]
[1741459510898,0.20101084,86055.0,86054.0,0.02901134]
[1741459513894,0.20101084,86055.0,86051.0,0.06408382]
[1741459514094,0.20101084,86055.0,86050.0,0.42599525]
[1741459515097,0.20101084,86055.0,86050.0,0.34763525]
[1741459515300,0.20101084,86055.0,86050.0,0.42599525]
[1741459515494,0.0929941,86051.0,86050.0,0.34763525]
[1741459516402,0.2893941,86051.0,86050.0,0.34763525]
[1741459517086,0.2893941,86051.0,86050.0,0.28971393]
[1741459519102,0.2893941,86051.0,86050.0,0.2782799]
[1741459519293,0.1964,86051.0,86050.0,0.2782799]
[1741459519687,0.2893941,86051.0,86050.0,0.2782799]
[1741459520109,0.2893941,86051.0,86050.0,0.22035858]
[1741459520701,0.1964,86051.0,86050.0,0.22035858]
[1741459521001,0.12396412,86051.0,86050.0,0.31335378]
[1741459522105,0.12396412,86051.0,86050.0,0.48785378]
[1741459522299,0.04671203,86057.0,86056.0,0.0929887]
[1741459523107,0.04671203,86057.0,86056.0,0.1713]
[1741459523310,0.04671203,86057.0,86056.0,0.2642887]
[1741459526004,0.17427164,86068.0,86064.0,0.0464896]
[1741459526205,0.17427164,86068.0,86067.0,0.3608]
[1741459526914,0.17427164,86068.0,86067.0,0.4537768]
[1741459529015,0.1914,86072.0,86071.0,0.0929725]
[1741459529214,0.1914,86072.0,86069.0,0.0464869]
[1741459529415,0.1914,86072.0,86070.0,0.1892]
[1741459530922,0.4537725,86071.0,86070.0,0.04914545]
[1741459531107,0.453,86071.0,86062.0,0.07832]
[1741459531314,0.1904,86070.0,86062.0,0.07832]
[1741459531514,0.092975,86069.0,86062.0,0.07832]
[1741459532114,0.1901,86068.0,86062.0,0.02039868]
[1741459532321,0.23657,86068.0,86062.0,0.02039868]
[1741459532619,0.3295466,86068.0,86062.0,0.02039868]
[1741459533113,0.3295466,86068.0,86062.0,0.06954413]
[1741459533313,0.23657,86068.0,86062.0,0.06954413]
[1741459535123,0.23657,86068.0,86062.0,0.01162281]
[1741459535329,0.23657,86068.0,86060.0,0.0963]
[1741459535519,0.3295464,86068.0,86060.0,0.0963]
[1741459535922,0.092978,86066.0,86060.0,0.0963]
[1741459536122,0.1807,86065.0,86060.0,0.0963]
[1741459536324,0.1807,86065.0,86061.0,0.0953]
[1741459538024,0.1807,86065.0,86061.0,0.0963]
[1741459538225,0.1807,86065.0,86061.0,0.03837868]
[1741459538420,0.1807,86065.0,86061.0,0.001]
[1741459541133,0.273679,86065.0,86061.0,0.001]
[1741459541328,0.273679,86065.0,86056.0,0.1831885]
[1741459541532,0.0929839,86061.0,86055.0,0.09195511]
[1741459541735,0.281,86060.0,86055.0,0.09195511]
[1741459542237,0.281,86060.0,86055.0,0.18215511]
[1741459542439,0.28,86060.0,86055.0,0.18215511]
[1741459542626,0.28,86060.0,86055.0,0.27514471]
[1741459542830,0.28,86060.0,86055.0,0.18215511]
[1741459543040,0.28,86060.0,86059.0,0.0929855]
[1741459543540,0.28,86060.0,86059.0,0.2761855]
[1741459544330,0.28,86060.0,86059.0,0.1832]
[1741459544640,0.28,86060.0,86059.0,0.1852]
[1741459545132,0.28,86060.0,86058.0,0.04169415]
[1741459545334,0.3729844,86060.0,86059.0,0.002]
[1741459545730,0.6408,86060.0,86049.0,0.0001743]
[1741459545930,0.0929952,86050.0,86049.0,0.0001743]
[1741459546438,0.2883952,86050.0,86049.0,0.0001743]
[1741459547038,0.2883952,86050.0,86049.0,0.04082677]
[1741459547431,0.0929984,86047.0,86046.0,0.76530545]
[1741459547632,0.0929984,86047.0,86046.0,0.76430545]
[1741459548034,0.0889984,86047.0,86046.0,0.76430545]
[1741459548635,0.0889984,86047.0,86046.0,0.76930545]
[1741459549445,0.1807984,86047.0,86046.0,0.76930545]
[1741459550336,0.1807984,86047.0,86046.0,0.75283127]
[1741459552737,0.1807984,86047.0,86046.0,0.7614529]
[1741459553442,0.1807984,86047.0,86046.0,0.70353158]
[1741459554643,0.0918,86047.0,86046.0,0.70353158]
[1741459554834,0.0638078,86047.0,86046.0,0.79653108]
[1741459555144,0.0638078,86047.0,86046.0,1.08153108]
[1741459556439,0.0638078,86047.0,86046.0,1.02360976]
[1741459557251,0.1608078,86047.0,86046.0,1.02360976]
[1741459558440,0.04648,86048.0,86047.0,0.0929984]
[1741459558646,0.04648,86048.0,86047.0,0.2823984]
[1741459559551,0.04648,86048.0,86047.0,0.1894]
[1741459559847,0.0946,86054.0,86053.0,0.0929919]
[1741459560238,0.0946,86054.0,86051.0,0.0464968]
[1741459560443,0.0905,86053.0,86052.0,0.1885]
[1741459560851,0.0905,86053.0,86052.0,0.281493]
[1741459561347,0.0905,86053.0,86052.0,0.0982]
[1741459561348,0.1834919,86053.0,86052.0,0.0982]
[1741459562253,0.0905,86053.0,86052.0,0.0982]
[1741459562648,0.0905,86053.0,86052.0,0.04027868]
[1741459564652,0.1834928,86053.0,86046.0,0.72718863]
[1741459564849,0.0988,86052.0,86047.0,0.0939]
[1741459565052,0.0988,86052.0,86047.0,0.1868978]
[1741459565251,0.0987,86051.0,86050.0,0.0929952]
[1741459565657,0.0987,86051.0,86048.0,0.0464986]
[1741459565856,0.0987,86051.0,86046.0,0.63198863]
[1741459565857,0.0988,86050.0,86046.0,0.63198863]
[1741459566159,0.04648,86049.0,86046.0,0.63198863]
[1741459566357,0.14518,86049.0,86047.0,0.0908]
[1741459566558,0.0988,86048.0,86047.0,0.0908]
[1741459567050,0.1975,86048.0,86047.0,0.0908]
[1741459567461,0.3608,86078.0,86047.0,0.0908]
[1741459567651,0.0935,86072.0,86066.0,0.0929773]
[1741459567847,0.0929667,86077.0,86067.0,0.1857]
[1741459568048,0.45498,86078.0,86067.0,0.1857]
[1741459568248,0.45498,86078.0,86068.0,0.0929757]
[1741459568651,0.0001743,86077.0,86068.0,0.4587]
[1741459568954,0.0001743,86077.0,86071.0,0.092972]
[1741459569154,0.0001743,86077.0,86072.0,0.0979]
[1741459569355,0.17427164,86073.0,86072.0,0.190871]
[1741459569567,0.17427164,86073.0,86072.0,0.0979]
[1741459570652,0.27227164,86073.0,86072.0,0.0979]
[1741459571259,0.27227164,86073.0,86072.0,0.1908714]
[1741459571456,0.17827164,86073.0,86072.0,0.1908714]
[1741459571653,0.15526968,86073.0,86072.0,0.13295008]
[1741459571852,0.09243968,86073.0,86072.0,0.13295008]
[1741459573463,0.004,86073.0,86072.0,0.13295008]
[1741459574864,0.004,86073.0,86072.0,0.15326876]
[1741459577764,0.004,86073.0,86072.0,0.09534744]
[1741459577953,0.004,86073.0,86072.0,0.07824]
[1741459578551,0.004,86073.0,86072.0,0.1712114]
[1741459580756,0.004,86073.0,86072.0,0.11329008]
[1741459581471,0.17842001,86076.0,86075.0,0.0929682]
[1741459581854,0.0929554,86087.0,86072.0,0.06680398]
[1741459582164,0.0929585,86084.0,86080.0,0.14013382]
[1741459582366,0.0929585,86084.0,86075.0,0.092968]
[1741459582566,0.0929585,86084.0,86074.0,0.0929684]
[1741459582567,0.3608,86088.0,86076.0,0.0929667]
[1741459582866,0.3608,86088.0,86074.0,0.0929684]
[1741459582867,0.092959,86084.0,86077.0,0.0971]
[1741459583260,0.098959,86084.0,86077.0,0.0971]
[1741459583867,0.095,86083.0,86077.0,0.03917868]
[1741459584767,0.095,86083.0,86078.0,0.0464824]
[1741459584963,0.1854,86082.0,86081.0,0.0929617]
[1741459585560,0.1854,86082.0,86081.0,0.10935085]
[1741459586264,0.1904,86082.0,86081.0,0.10935085]
[1741459586561,0.1904,86082.0,86081.0,0.0929617]
[1741459586967,0.1904,86082.0,86079.0,0.9221819]
[1741459587266,0.1904,86082.0,86079.0,0.9211419]
[1741459587468,0.1904,86082.0,86081.0,0.0929617]
[1741459587768,0.1904,86082.0,86081.0,0.10934993]
[1741459588468,0.1904,86082.0,86081.0,0.0929617]
[1741459589657,0.1914,86082.0,86081.0,0.0939617]
[1741459589865,0.1914,86082.0,86081.0,0.03604038]
[1741459590067,0.1914,86082.0,86081.0,0.001]
[1741459590962,0.1914,86082.0,86081.0,0.0939617]
[1741459592171,0.1914,86082.0,86081.0,0.001]
[1741459593067,0.1914,86082.0,86079.0,0.87466]
[1741459593365,0.098,86081.0,86079.0,0.87466]
[1741459593772,0.1916,86080.0,86079.0,0.87466]
[1741459595868,0.1966,86080.0,86079.0,0.87466]
[1741459596068,0.1966,86080.0,86079.0,0.78987459]
[1741459599071,0.1966,86080.0,86079.0,0.73195327]
[1741459600471,0.1966,86080.0,86079.0,1.01741717]
[1741459600870,0.18726649,86080.0,86079.0,1.01741717]
[1741459601466,0.098,86081.0,86080.0,0.0929628]
[1741459601675,0.098,86081.0,86080.0,0.2843628]
[1741459603082,0.104,86081.0,86080.0,0.2843628]
[1741459603778,0.104,86081.0,86080.0,0.1914]
[1741459604372,0.0929628,86080.0,86079.0,0.73195327]
[1741459604579,0.1863628,86080.0,86079.0,0.58265327]
[1741459605174,0.1863628,86080.0,86079.0,0.52473195]
[1741459605680,0.0934,86080.0,86079.0,0.54120567]
[1741459605872,0.0974,86080.0,86079.0,0.54120567]
[1741459606472,0.5511628,86080.0,86079.0,0.54120567]
[1741459606672,0.5511628,86080.0,86079.0,0.52473195]
[1741459607683,0.1903628,86080.0,86079.0,0.52473195]
[1741459608183,0.0974,86080.0,86079.0,0.55977453]
[1741459608483,0.0974,86080.0,86079.0,0.55971063]
[1741459608778,0.0974,86080.0,86079.0,0.66906098]
[1741459609980,0.0974,86080.0,86079.0,0.21096494]
[1741459610783,0.1903628,86080.0,86079.0,0.21096494]
[1741459610986,0.1863628,86080.0,86079.0,0.21096494]
[1741459611182,0.1863628,86080.0,86079.0,0.15304362]
[1741459612775,0.1863628,86080.0,86079.0,0.16171546]
[1741459612976,0.1863628,86080.0,86079.0,0.02512219]
[1741459613176,0.1873628,86080.0,86079.0,0.02512219]
[1741459613576,0.1873628,86080.0,86079.0,0.00867184]
[1741459613783,0.0944,86080.0,86076.0,0.097]
[1741459613977,0.092966,86077.0,86076.0,0.097]
[1741459614181,0.092966,86077.0,86076.0,0.09157667]
[1741459614387,0.092966,86077.0,86075.0,0.37231964]
[1741459614577,0.1863671,86076.0,86075.0,0.37231964]
[1741459614977,0.1863671,86076.0,86075.0,0.32888987]
[1741459615182,0.1863671,86076.0,86075.0,0.33757218]
[1741459617182,0.5471671,86076.0,86075.0,0.26810759]
[1741459617389,0.5471671,86076.0,86075.0,0.21018627]
[1741459617583,0.5471671,86076.0,86075.0,0.26140191]
[1741459618886,0.5471671,86076.0,86075.0,0.21018627]
[1741459619182,0.74878625,86076.0,86073.0,0.00904853]
[1741459619387,0.65581915,86076.0,86072.0,0.12849394]
[1741459619590,0.0929757,86068.0,86067.0,0.35542938]
[1741459619780,0.5319357,86068.0,86067.0,0.20612938]
[1741459620087,0.6819357,86068.0,86067.0,0.20612938]
[1741459620276,0.6819357,86068.0,86067.0,0.14820806]
[1741459620677,0.6829357,86068.0,86067.0,0.14820806]
[1741459621288,0.5329357,86068.0,86067.0,0.00852983]
[1741459621478,0.0929801,86064.0,86063.0,0.0954]
[1741459621674,0.0929811,86063.0,86062.0,0.01028471]
[1741459621888,0.0929811,86063.0,86062.0,0.00174267]
[1741459623090,0.1556811,86063.0,86062.0,0.00174267]
[1741459623590,0.0929833,86061.0,86060.0,0.22402135]
[1741459624188,0.25537274,86077.0,86060.0,0.23271082]
[1741459624387,0.25537274,86077.0,86062.0,0.14001394]
[1741459624388,0.0929748,86069.0,86062.0,0.14001394]
[1741459624584,0.0001743,86072.0,86063.0,0.0901]
[1741459624783,0.092979,86065.0,86064.0,0.0897]
[1741459625288,0.283779,86065.0,86064.0,0.0897]
[1741459626191,0.189879,86065.0,86064.0,0.0897]
[1741459626392,0.092979,86065.0,86064.0,0.03177868]
[1741459626997,0.188379,86065.0,86064.0,0.03177868]
[1741459629391,0.0954,86065.0,86063.0,0.06395736]
[1741459629591,0.0929801,86064.0,86063.0,0.06395736]
[1741459629792,0.0954,86065.0,86063.0,0.06395736]
[1741459630790,0.0954,86065.0,86063.0,0.06495736]
[1741459631795,0.0001743,86072.0,86063.0,0.06495736]
[1741459631996,0.0001743,86072.0,86066.0,0.0929771]
[1741459632394,0.0001743,86072.0,86064.0,0.0929799]
[1741459632593,0.0001743,86072.0,86065.0,0.0929782]
[1741459632793,0.0931457,86072.0,86065.0,0.0962]
[1741459633193,0.0929,86071.0,86065.0,0.0962]
[1741459633394,0.0929,86071.0,86065.0,0.1891786]
[1741459634195,0.0001743,86072.0,86071.0,0.0929725]
[1741459635096,0.0001743,86072.0,86071.0,0.2834725]
[1741459635307,0.10420469,86078.0,86071.0,0.2834725]
[1741459635308,0.00979263,86078.0,86071.0,0.2834725]
[1741459635496,0.10427584,86082.0,86077.0,0.34936078]
[1741459635805,0.10336781,86085.0,86082.0,0.0464799]
[1741459636009,0.10336781,86085.0,86084.0,0.0929585]
[1741459636206,0.10336781,86085.0,86084.0,0.10947839]
[1741459636507,0.10336781,86085.0,86084.0,0.35113433]
[1741459637399,0.10336781,86085.0,86084.0,0.25817583]
[1741459637801,0.10336781,86085.0,86084.0,0.24165594]
[1741459638592,0.10336781,86085.0,86084.0,0.18373462]
[1741459639599,0.10636781,86085.0,86084.0,0.27669312]
[1741459639811,0.10636781,86085.0,86084.0,0.29312734]
[1741459641701,0.003,86085.0,86084.0,0.23520602]
[1741459644014,0.003,86085.0,86084.0,0.26300637]
[1741459644609,0.003,86085.0,86084.0,0.20508505]
[1741459644806,0.003,86085.0,86084.0,0.23224351]
[1741459647115,0.003,86085.0,86084.0,0.24083473]
[1741459647920,0.003,86085.0,86084.0,0.18291341]
[1741459650805,0.003,86085.0,86084.0,0.12499209]
[1741459652225,0.003,86085.0,86084.0,0.17686695]
[1741459653620,0.003,86085.0,86084.0,0.17694321]
[1741459653818,0.003,86085.0,86084.0,0.11550115]
[1741459654018,0.003,86085.0,86084.0,0.20845965]
[1741459655518,0.003,86085.0,86084.0,0.19519508]
[1741459655713,0.003,86085.0,86084.0,0.20846917]
[1741459656625,0.003,86085.0,86084.0,0.11551067]
[1741459656828,0.003,86085.0,86084.0,0.05758935]
[1741459657622,0.003,86085.0,86084.0,0.15054785]
[1741459658013,0.003,86085.0,86084.0,0.05758935]
[1741459658628,0.003,86085.0,86084.0,0.15054785]
[1741459659626,0.003,86085.0,86084.0,0.15061155]
[1741459659828,0.003,86085.0,86084.0,0.09269023]
[1741459661425,0.003,86085.0,86084.0,0.14324092]
[1741459661732,0.003,86085.0,86084.0,0.24954698]
[1741459662822,0.003,86085.0,86084.0,0.26661884]
[1741459663022,0.003,86085.0,86084.0,0.20869752]
[1741459663733,0.003,86085.0,86084.0,0.20861177]
[1741459665327,0.0952,86091.0,86084.0,0.20861177]
[1741459665532,0.0952,86091.0,86085.0,0.11000787]
[1741459665831,0.0927,86090.0,86086.0,0.01705057]
[1741459666031,0.0927,86090.0,86085.0,0.05208655]
[1741459666231,0.0967,86089.0,86086.0,0.0971]
[1741459666630,0.0927,86088.0,86086.0,0.0971]
[1741459666831,0.0927,86088.0,86087.0,0.02747697]
[1741459669030,0.0927,86088.0,86086.0,0.03917868]
[1741459669230,0.0927,86088.0,86085.0,0.39792632]
[1741459669536,0.0937,86088.0,86087.0,0.01475038]
[1741459671637,0.0937,86088.0,86085.0,0.43879707]
[1741459671837,0.0937,86088.0,86085.0,0.34583977]
[1741459672027,0.0937,86088.0,86085.0,0.28791845]
[1741459673033,0.0937,86088.0,86085.0,0.38001845]
[1741459673234,0.0937,86088.0,86085.0,0.47297495]
[1741459673729,0.0957,86088.0,86085.0,0.38001845]
[1741459674330,0.0957,86088.0,86085.0,0.47297545]
[1741459674731,0.0957,86088.0,86085.0,0.38001845]
[1741459674932,0.0957,86088.0,86086.0,0.01462014]
[1741459675133,0.0957,86088.0,86085.0,0.33671727]
[1741459677735,0.0957,86088.0,86085.0,0.0921]
[1741459677935,0.0957,86088.0,86086.0,0.01676035]
[1741459678243,0.0957,86088.0,86087.0,0.01672415]
[1741459681242,0.0957,86088.0,86084.0,0.00596716]
[1741459681549,0.0957,86088.0,86083.0,0.1834592]
[1741459682050,0.0957,86088.0,86083.0,0.14899351]
[1741459682240,0.0957,86088.0,86083.0,0.24195301]
[1741459682440,0.0957,86088.0,86083.0,0.14899351]
[1741459682741,0.0957,86088.0,86083.0,0.24195301]
[1741459682941,0.0957,86088.0,86083.0,0.14899351]
[1741459683238,0.0957,86088.0,86084.0,0.0929582]
[1741459684141,0.0957,86088.0,86083.0,0.14899351]
[1741459684637,0.0947,86088.0,86083.0,0.19739351]
[1741459685037,0.0926,86087.0,86084.0,0.0953]
[1741459685645,0.0928,86086.0,86084.0,0.0953]
[1741459686042,0.0926,86085.0,86084.0,0.0953]
[1741459687032,0.0926,86085.0,86084.0,0.1882585]
[1741459687239,0.0926,86085.0,86084.0,0.13033718]
[1741459689450,0.0946,86085.0,86084.0,0.03737868]
[1741459690248,0.0946,86085.0,86084.0,0.12081586]
[1741459690849,0.0946,86085.0,86084.0,0.0929585]
[1741459691258,0.0946,86085.0,86083.0,0.14899351]
[1741459691480,0.0978,86084.0,86083.0,0.14899351]
[1741459693358,0.0978,86084.0,86083.0,0.09107219]
[1741459694155,0.0998,86084.0,86083.0,0.09107219]
[1741459696245,0.0998,86084.0,86083.0,0.03315423]
[1741459696456,0.0998,86084.0,86081.0,0.1711216]
[1741459696651,0.0952,86083.0,86081.0,0.1711216]
[1741459697157,0.0989,86082.0,86081.0,0.1711216]
[1741459697462,0.0989,86082.0,86081.0,0.05869139]
[1741459697649,0.0989,86082.0,86079.0,0.69196569]
[1741459697650,0.0929628,86080.0,86079.0,0.69196569]
[1741459698249,0.1881628,86080.0,86079.0,0.69196569]
[1741459699351,0.2662428,86080.0,86079.0,0.63404773]